bitfinex/quotes_BTCUSD_20241119
["timestamp","ask_amount","ask_price","bid_price","bid_amount"]
[1732046782509,0.10671774,93240.0,93230.0,0.00111876]
[1732046782739,0.107243,93246.0,93238.0,0.085801]
[1732046782959,0.21630655,93245.0,93236.0,0.085802]
[1732046783204,0.10906255,93245.0,93235.0,0.085804]
[1732046783472,0.10906255,93245.0,93239.0,0.0866542]
[1732046783690,0.10906255,93245.0,93239.0,0.0008542]
[1732046783923,0.107245,93244.0,93239.0,0.0008542]
[1732046784146,0.10906255,93243.0,93239.0,0.0008542]
[1732046784405,0.10906255,93243.0,93239.0,0.0866542]
[1732046784850,0.10906255,93243.0,93239.0,0.0008542]
[1732046785097,0.10906255,93243.0,93227.0,0.085811]
[1732046785627,0.10906255,93243.0,93237.0,0.085802]
[1732046786277,0.10906255,93243.0,93238.0,0.085801]
[1732046786495,0.10906255,93243.0,93240.0,0.0858]
[1732046786750,0.5483,93244.0,93243.0,0.085797]
[1732046786991,0.5483,93244.0,93243.0,0.08854465]
[1732046787703,0.04298877,93251.0,93250.0,0.08579]
[1732046787923,0.1,93262.0,93254.0,0.085786]
[1732046788150,0.1,93262.0,93237.0,0.0751]
[1732046788151,0.5483,93261.0,93237.0,0.0751]
[1732046788375,0.5483,93261.0,93255.0,0.085785]
[1732046788607,0.5483,93261.0,93239.0,0.085801]
[1732046788828,0.5483,93261.0,93259.0,0.085782]
[1732046789039,0.5483,93261.0,93256.0,0.085784]
[1732046789266,0.5483,93261.0,93257.0,0.08853652]
[1732046790184,0.5483,93261.0,93257.0,0.00275252]
[1732046790404,0.107229,93258.0,93257.0,0.00275252]
[1732046790622,0.32351655,93260.0,93237.0,0.0017106]
[1732046790623,0.10906255,93260.0,93237.0,0.0017106]
[1732046790864,0.21628955,93260.0,93251.0,0.085789]
[1732046791134,0.21628955,93260.0,93250.0,0.08579]
[1732046791135,0.10906255,93260.0,93252.0,0.085788]
[1732046791380,0.10906255,93260.0,93237.0,0.0017106]
[1732046791603,0.10906255,93260.0,93244.0,0.085795]
[1732046791825,0.10906255,93260.0,93237.0,0.0017106]
[1732046792104,0.107234,93254.0,93245.0,0.085794]
[1732046792278,0.10906255,93260.0,93246.0,0.085794]
[1732046792481,0.10906255,93260.0,93249.0,0.085791]
[1732046792744,0.10906255,93260.0,93237.0,0.0017106]
[1732046792951,0.10906255,93260.0,93238.0,0.085801]
[1732046793265,0.32351855,93260.0,93248.0,0.085792]
[1732046793506,0.10906255,93260.0,93257.0,0.085783]
[1732046793734,0.04430701,93263.0,93262.0,0.085779]
[1732046793978,0.15336956,93263.0,93257.0,0.085783]
[1732046794223,0.20722,93266.0,93257.0,0.085783]
[1732046794224,0.10906255,93262.0,93257.0,0.085783]
[1732046794685,0.10906255,93262.0,93256.0,0.085785]
[1732046794963,0.10906255,93262.0,93260.0,0.085781]
[1732046795412,0.10906255,93262.0,93261.0,0.00276253]
[1732046795888,0.10906255,93262.0,93252.0,0.085788]
[1732046796114,0.10906255,93262.0,93257.0,0.085784]
[1732046796338,0.10906255,93262.0,93219.0,0.18355899]
[1732046796560,0.10906255,93262.0,93253.0,0.085787]
[1732046796785,0.10906255,93262.0,93258.0,0.085783]
[1732046797027,0.655522,93264.0,93256.0,0.085785]
[1732046797524,0.655522,93264.0,93254.0,0.085786]
[1732046797525,0.5483,93264.0,93257.0,0.085784]
[1732046797752,0.5483,93264.0,93257.0,0.08854683]
[1732046798486,0.5483,93264.0,93257.0,0.00276283]
[1732046798707,0.655522,93264.0,93257.0,0.00276283]
[1732046798959,0.655522,93264.0,93258.0,0.08855876]
[1732046798960,0.5483,93264.0,93258.0,0.08855876]
[1732046799879,0.5483,93265.0,93258.0,0.08855876]
[1732046800096,0.5483,93265.0,93259.0,0.085782]
[1732046800534,0.655522,93265.0,93260.0,0.00277503]
[1732046800781,0.5483,93265.0,93257.0,0.085784]
[1732046801007,0.5483,93265.0,93251.0,0.085789]
[1732046801234,0.107222,93264.0,93256.0,0.085784]
[1732046801492,0.655521,93265.0,93245.0,0.085795]
[1732046801733,0.655521,93265.0,93226.0,0.10115393]
[1732046801734,0.5483,93265.0,93226.0,0.10115393]
[1732046801952,0.107224,93263.0,93255.0,0.085786]
[1732046802172,0.0008556,93264.0,93255.0,0.085786]
[1732046802403,0.0008556,93264.0,93242.0,0.085798]
[1732046802637,0.0008556,93264.0,93249.0,0.085791]
[1732046802906,0.5491556,93264.0,93249.0,0.085791]
[1732046803128,0.107225,93262.0,93252.0,0.085788]
[1732046803351,0.5491556,93264.0,93252.0,0.085788]
[1732046803574,0.107225,93262.0,93253.0,0.085787]
[1732046803809,0.6563786,93264.0,93256.0,0.085784]
[1732046804035,0.107224,93263.0,93255.0,0.085785]
[1732046804262,0.5491556,93264.0,93232.0,0.085807]
[1732046804484,0.09452799,93262.0,93257.0,0.085784]
[1732046804736,0.75090559,93264.0,93255.0,0.171571]
[1732046804986,0.64368359,93264.0,93257.0,0.085784]
[1732046805444,0.09452799,93261.0,93257.0,0.085784]
[1732046805673,0.09452799,93260.0,93256.0,0.085784]
[1732046806141,0.09452799,93261.0,93256.0,0.085784]
[1732046806361,0.09452799,93261.0,93256.0,0.171568]
[1732046806591,0.09452799,93261.0,93257.0,0.00277774]
[1732046807064,0.09452799,93261.0,93256.0,0.085784]
[1732046807316,0.09452799,93261.0,93254.0,0.085786]
[1732046807592,0.09452799,93259.0,93255.0,0.085785]
[1732046807894,0.09452799,93259.0,93257.0,0.085784]
[1732046808073,0.14179199,93262.0,93255.0,0.085786]
[1732046808074,0.09452799,93262.0,93261.0,0.08578]
[1732046808286,0.5491556,93264.0,93261.0,0.08578]
[1732046808287,0.09452799,93263.0,93261.0,0.08578]
[1732046808498,0.0008556,93264.0,93263.0,0.085778]
[1732046808928,0.0008556,93264.0,93263.0,0.08891992]
[1732046810430,0.0008556,93264.0,93263.0,0.19798247]
[1732046810851,0.0008556,93264.0,93263.0,0.24090246]
[1732046811060,0.0008556,93264.0,93263.0,0.19798247]
[1732046811269,0.0008556,93264.0,93263.0,0.08891992]
[1732046811900,0.14179199,93285.0,93263.0,0.08891992]
[1732046811901,0.00823889,93286.0,93263.0,0.11220447]
[1732046812134,0.14179199,93291.0,93290.0,0.085754]
[1732046812404,0.14179199,93296.0,93294.0,0.08575]
[1732046812621,0.5483,93302.0,93292.0,0.085752]
[1732046812622,0.14179199,93301.0,93299.0,0.085745]
[1732046812864,0.5483,93302.0,93299.0,0.085745]
[1732046813121,0.5483,93302.0,93277.0,0.12339472]
[1732046813353,0.5483,93302.0,93285.0,0.085758]
[1732046813566,0.5483,93302.0,93295.0,0.085749]
[1732046813773,0.5483,93302.0,93295.0,0.171498]
[1732046813986,0.5483,93302.0,93296.0,0.00309117]
[1732046814447,0.214363,93300.0,93288.0,0.085755]
[1732046814655,0.107185,93297.0,93287.0,0.085756]
[1732046814854,0.10906255,93299.0,93284.0,0.085759]
[1732046815090,0.214369,93297.0,93286.0,0.085757]
[1732046815299,0.10906255,93299.0,93288.0,0.085755]
[1732046815509,0.21624455,93299.0,93291.0,0.085752]
[1732046815716,0.10906255,93299.0,93288.0,0.085755]
[1732046815921,0.107186,93296.0,93288.0,0.085755]
[1732046816135,0.107184,93297.0,93289.0,0.085754]
[1732046816343,0.107184,93297.0,93289.0,0.08884602]
[1732046816556,0.214366,93298.0,93282.0,0.085761]
[1732046816785,0.107185,93297.0,93275.0,0.085767]
[1732046816997,0.10906255,93299.0,93289.0,0.085754]
[1732046816998,0.107184,93298.0,93289.0,0.085754]
[1732046817208,0.10906255,93299.0,93293.0,0.085751]
[1732046817421,0.10906255,93299.0,93291.0,0.085752]
[1732046817839,0.5483,93298.0,93292.0,0.00309202]
[1732046818274,0.655484,93298.0,93290.0,0.085753]
[1732046818691,0.655484,93298.0,93291.0,0.00309202]
[1732046819144,0.5483,93298.0,93291.0,0.00309202]
[1732046819392,0.5483,93298.0,93290.0,0.085753]
[1732046820110,0.655484,93298.0,93291.0,0.085753]
[1732046820316,0.655484,93298.0,93290.0,0.085753]
[1732046820531,0.107184,93297.0,93288.0,0.085755]
[1732046820753,0.107184,93297.0,93249.0,0.002]
[1732046820754,0.12339472,93291.0,93262.0,0.0793]
[1732046821019,0.10906255,93297.0,93262.0,0.0793]
[1732046821020,0.5483,93290.0,93289.0,0.08884788]
[1732046821234,0.59242055,93303.0,93300.0,0.085744]
[1732046821447,0.6483,93303.0,93300.0,0.085744]
[1732046821677,0.6483,93303.0,93301.0,0.00308775]
[1732046821930,0.6483,93303.0,93295.0,0.085749]
[1732046822160,0.6483,93303.0,93297.0,0.085747]
[1732046822376,0.6483,93303.0,93298.0,0.085746]
[1732046822595,0.7431518,93303.0,93298.0,0.085746]
[1732046822791,0.7431518,93303.0,93285.0,0.171516]
[1732046822792,0.6483,93303.0,93285.0,0.171516]
[1732046823054,0.6483,93303.0,93301.0,0.085743]
[1732046823302,0.5483,93303.0,93301.0,0.085743]
[1732046823511,0.5483,93303.0,93289.0,0.085754]
[1732046823713,0.5483,93303.0,93302.0,0.00307997]
[1732046824148,0.5483,93303.0,93299.0,0.085745]
[1732046824367,0.5483,93303.0,93302.0,0.00307997]
[1732046824586,0.5483,93303.0,93299.0,0.085745]
[1732046824795,0.5483,93303.0,93302.0,0.00307997]
[1732046825002,0.5483,93303.0,93299.0,0.085745]
[1732046825428,0.5483,93303.0,93300.0,0.00308168]
[1732046825857,0.5483,93303.0,93299.0,0.085745]
[1732046826066,0.5483,93303.0,93301.0,0.00308082]
[1732046826277,0.5483,93303.0,93300.0,0.00308168]
[1732046826521,0.5483,93303.0,93299.0,0.085745]
[1732046826766,0.5483,93303.0,93300.0,0.085744]
[1732046827028,0.5483,93307.0,93305.0,0.08574]
[1732046827233,0.04394446,93308.0,93300.0,0.00308168]
[1732046827234,0.10603697,93319.0,93317.0,0.085729]
[1732046827460,0.10603697,93319.0,93318.0,0.085728]
[1732046827461,0.01118517,93319.0,93318.0,0.085728]
[1732046827669,0.04334532,93323.0,93322.0,0.085724]
[1732046828113,0.0008549,93325.0,93324.0,0.085722]
[1732046828560,0.0445089,93325.0,93324.0,0.085722]
[1732046828785,0.0445089,93325.0,93324.0,0.08878021]
[1732046829004,0.0008549,93325.0,93324.0,0.08878021]
[1732046829625,0.1080069,93325.0,93324.0,0.00305821]
[1732046829825,0.23140162,93325.0,93324.0,0.00305821]
[1732046830030,0.2530641,93325.0,93298.0,0.0753]
[1732046830231,0.107157,93321.0,93315.0,0.08573]
[1732046830490,0.01975193,93322.0,93321.0,0.085725]
[1732046830696,0.0008549,93325.0,93321.0,0.085725]
[1732046830697,0.0008549,93325.0,93322.0,0.085724]
[1732046830915,0.0008549,93325.0,93324.0,0.085722]
[1732046831361,0.0008549,93325.0,93324.0,0.08855969]
[1732046834009,0.0008549,93325.0,93324.0,0.13705969]
[1732046836027,0.0008549,93325.0,93324.0,0.08855969]
[1732046838892,0.02059136,93325.0,93324.0,0.08855969]
[1732046839161,0.23140162,93325.0,93324.0,0.00283769]
[1732046839415,0.12774336,93325.0,93324.0,0.00283769]
[1732046839639,0.02059136,93325.0,93324.0,0.085722]
[1732046839900,0.02059136,93325.0,93323.0,0.085723]
[1732046840141,0.02059136,93325.0,93319.0,0.02]
[1732046840142,0.0008549,93325.0,93324.0,0.00278938]
[1732046840383,0.02059971,93325.0,93319.0,0.02]
[1732046840627,0.107157,93321.0,93320.0,0.00279251]
[1732046840851,0.12690181,93321.0,93320.0,0.00279251]
[1732046841344,0.12690181,93321.0,93319.0,0.02]
[1732046841600,0.12690281,93320.0,93319.0,0.02]
[1732046842068,0.5483,93324.0,93319.0,0.02]
[1732046842284,0.107156,93322.0,93319.0,0.02]
[1732046842966,0.5483,93324.0,93319.0,0.02]
[1732046843420,0.655453,93324.0,93319.0,0.02]
[1732046843918,0.5483,93324.0,93319.0,0.02]
[1732046844138,0.107154,93323.0,93319.0,0.02]
[1732046844598,0.5483,93324.0,93319.0,0.02]
[1732046844822,0.6563069,93325.0,93319.0,0.02]
[1732046845066,0.5491549,93325.0,93321.0,0.085725]
[1732046845304,0.5491549,93325.0,93319.0,0.02]
[1732046845305,0.5491549,93325.0,93324.0,0.085722]
[1732046845818,0.5491549,93325.0,93324.0,0.08840654]
[1732046847968,0.0008549,93325.0,93324.0,0.08840654]
[1732046848434,0.0008549,93325.0,93324.0,0.19746909]
[1732046848662,0.0008549,93325.0,93324.0,0.37946909]
[1732046853519,0.0008549,93325.0,93324.0,0.08840654]
[1732046853967,0.02066968,93325.0,93324.0,0.08840654]
[1732046855053,0.12782168,93325.0,93324.0,0.00268454]
[1732046855280,0.67612168,93325.0,93324.0,0.00268454]
[1732046855495,0.56896968,93325.0,93323.0,0.085723]
[1732046855695,0.56896968,93325.0,93324.0,0.085722]
[1732046855696,0.0008549,93325.0,93324.0,0.085722]
[1732046855905,0.02068982,93325.0,93324.0,0.085722]
[1732046856129,0.02068982,93325.0,93324.0,0.08838232]
[1732046856982,0.52352817,93330.0,93329.0,0.085718]
[1732046857189,0.56707034,93330.0,93329.0,0.085718]
[1732046858024,0.52352817,93330.0,93329.0,0.085718]
[1732046858457,0.52352817,93330.0,93329.0,0.08838061]
[1732046859802,0.0008547,93334.0,93329.0,0.00266261]
[1732046860010,0.0008547,93334.0,93333.0,0.085714]
[1732046860440,0.0008547,93334.0,93333.0,0.08837661]
[1732046861099,0.0008547,93334.0,93333.0,0.42873916]
[1732046864703,0.0008547,93334.0,93333.0,0.26367661]
[1732046865130,0.0008547,93334.0,93333.0,0.27367661]
[1732046865569,0.0008547,93334.0,93333.0,0.38273916]
[1732046866673,0.0008547,93334.0,93333.0,0.43213916]
[1732046867336,0.0008547,93334.0,93333.0,0.38273916]
[1732046867537,0.0008547,93334.0,93333.0,0.27367661]
[1732046868844,0.0008547,93334.0,93333.0,0.26367661]
[1732046869069,0.0008547,93334.0,93333.0,0.18837661]
[1732046869726,0.0008547,93334.0,93333.0,0.08837661]
[1732046870540,0.0008547,93334.0,93333.0,0.00266261]
[1732046870712,0.0008547,93334.0,93333.0,0.08837661]
[1732046870915,0.02069545,93334.0,93333.0,0.085714]
[1732046871158,0.02069545,93334.0,93333.0,0.32079412]
[1732046871366,0.02069545,93334.0,93333.0,0.39829412]
[1732046871585,0.0008547,93334.0,93333.0,0.39829412]
[1732046871842,0.46054202,93344.0,93333.0,0.31258012]
[1732046872053,0.0772104,93362.0,93349.0,0.085699]
[1732046872474,0.0017104,93362.0,93349.0,0.085699]
[1732046872709,0.0017104,93362.0,93349.0,0.08832185]
[1732046878419,0.1088204,93362.0,93349.0,0.08832185]
[1732046879244,0.2159314,93362.0,93349.0,0.08832185]
[1732046879465,0.1088314,93353.0,93349.0,0.00262285]
[1732046879681,0.07575,93350.0,93349.0,0.00262285]
[1732046879889,0.07575,93350.0,93348.0,0.0857]
[1732046880105,0.07575,93350.0,93349.0,0.085699]
[1732046880341,5e-05,93350.0,93349.0,0.08832185]
[1732046882084,5e-05,93350.0,93349.0,0.00262285]
[1732046882085,0.107173,93350.0,93349.0,0.00262285]
[1732046882299,5e-05,93350.0,93349.0,0.00262285]
[1732046882502,5e-05,93350.0,93347.0,0.085701]
[1732046882710,5e-05,93350.0,93325.0,0.1]
[1732046882711,5e-05,93350.0,93348.0,0.0857]
[1732046882910,5e-05,93350.0,93346.0,0.085701]
[1732046883124,0.0009048,93350.0,93346.0,0.085701]
[1732046883356,0.1080288,93350.0,93347.0,0.00262368]
[1732046883568,0.0009048,93350.0,93347.0,0.00262368]
[1732046883771,0.0009048,93350.0,93343.0,0.085704]
[1732046883772,0.1080288,93350.0,93344.0,0.085703]
[1732046883972,0.107124,93349.0,93348.0,0.0026229]
[1732046884208,0.107124,93349.0,93344.0,0.085704]
[1732046884454,0.0009048,93350.0,93343.0,0.085704]
[1732046884736,0.0009048,93350.0,93341.0,0.085706]
[1732046884978,0.0009048,93350.0,93331.0,0.085716]
[1732046884979,0.10713,93344.0,93338.0,0.085709]
[1732046885407,0.107128,93346.0,93340.0,0.085708]
[1732046885650,0.10713,93345.0,93339.0,0.085708]
[1732046885876,0.130126,93348.0,93343.0,0.085704]
[1732046886079,0.09603351,93350.0,93348.0,0.0857]
[1732046886284,0.0009048,93350.0,93349.0,0.085699]
[1732046886740,0.0009048,93350.0,93349.0,0.08832611]
[1732046886963,0.14354827,93358.0,93356.0,0.085692]
[1732046886964,0.05820566,93358.0,93356.0,0.085692]
[1732046887206,0.05820566,93358.0,93355.0,0.085694]
[1732046887412,0.0008552,93358.0,93355.0,0.085694]
[1732046887628,0.0008552,93358.0,93330.0,0.0117096]
[1732046887839,0.04503092,93358.0,93355.0,0.085693]
[1732046888071,0.04503092,93358.0,93354.0,0.085695]
[1732046888278,0.04503092,93358.0,93353.0,0.085695]
[1732046888488,0.04503092,93358.0,93357.0,0.085692]
[1732046888704,0.04503092,93358.0,93355.0,0.085693]
[1732046889136,0.04503092,93358.0,93355.0,0.171387]
[1732046889343,0.04503092,93358.0,93355.0,0.085693]
[1732046889825,0.04503092,93358.0,93351.0,0.085698]
[1732046890026,0.04503092,93358.0,93354.0,0.085694]
[1732046890450,0.04503092,93358.0,93354.0,0.171388]
[1732046890871,0.04503092,93358.0,93355.0,0.085694]
[1732046891122,0.18772399,93358.0,93334.0,0.085713]
[1732046891345,0.107118,93355.0,93348.0,0.0857]
[1732046891569,0.14269307,93352.0,93333.0,0.10906255]
[1732046891782,0.14269307,93352.0,93351.0,0.085698]
[1732046892006,0.14269307,93352.0,93351.0,0.08832425]
[1732046892219,0.35126062,93353.0,93351.0,0.00262625]
[1732046892432,0.19025743,93354.0,93350.0,0.085698]
[1732046892644,0.14272933,93351.0,93350.0,0.085698]
[1732046894526,0.14272933,93351.0,93344.0,0.085703]
[1732046894527,0.14272933,93351.0,93346.0,0.085702]
[1732046894730,0.14272933,93351.0,93347.0,0.085701]
[1732046895147,0.14358463,93351.0,93347.0,0.085701]
[1732046895369,0.0008553,93351.0,93344.0,0.0017106]
[1732046895582,0.0008553,93351.0,93349.0,0.085699]
[1732046895794,0.0008553,93351.0,93344.0,0.0017106]
[1732046896010,0.214248,93350.0,93344.0,0.0017106]
[1732046896221,0.107129,93345.0,93344.0,0.0017106]
[1732046896428,0.214252,93348.0,93344.0,0.0017106]
[1732046896638,0.107128,93347.0,93344.0,0.0017106]
[1732046896849,0.0951604,93349.0,93348.0,0.0857]
[1732046897278,0.0951604,93350.0,93348.0,0.08844556]
[1732046897507,0.0951604,93349.0,93348.0,0.00274556]
[1732046897943,0.0951604,93349.0,93347.0,0.085701]
[1732046898180,0.0951604,93349.0,93348.0,0.00274635]
[1732046898386,0.0951604,93349.0,93347.0,0.085701]
[1732046898812,0.0951604,93349.0,93348.0,0.00274635]
[1732046899026,0.0951604,93349.0,93347.0,0.085701]
[1732046900612,0.0951604,93349.0,93348.0,0.00274668]
[1732046900833,0.0951604,93349.0,93348.0,0.0857]
[1732046901056,0.14358463,93351.0,93348.0,0.08844668]
[1732046901278,0.14358463,93351.0,93348.0,0.00274668]
[1732046901493,0.14272933,93350.0,93348.0,0.00274668]
[1732046901701,0.14272933,93350.0,93347.0,0.085701]
[1732046901914,0.05558463,93351.0,93347.0,0.085701]
[1732046902127,0.09519272,93348.0,93347.0,0.085701]
[1732046902339,0.0008553,93351.0,93347.0,0.085701]
[1732046902555,0.0008553,93351.0,93347.0,0.08844369]
[1732046903004,0.130126,93348.0,93347.0,0.00274269]
[1732046903262,0.140129,93345.0,93344.0,0.0017106]
[1732046903472,1.1711942,93345.0,93344.0,0.0017106]
[1732046904783,1.18237373,93345.0,93344.0,0.0017106]
[1732046905743,1.18437373,93345.0,93344.0,0.0017106]
[1732046905955,1.18237373,93345.0,93344.0,0.0017106]
[1732046906166,1.18236463,93345.0,93344.0,0.0017106]
[1732046908560,1.22532138,93345.0,93344.0,0.0017106]
[1732046911174,0.86612983,93345.0,93344.0,0.0017106]
[1732046911383,0.86612983,93345.0,93344.0,0.0874146]
[1732046911803,0.86612983,93345.0,93344.0,0.09005178]
[1732046911804,0.50349877,93345.0,93344.0,0.09005178]
[1732046912459,0.85535001,93345.0,93344.0,0.09005178]
[1732046914013,0.39480799,93345.0,93344.0,0.09005178]
[1732046914841,0.3902528,93345.0,93344.0,0.0017106]
[1732046915061,0.64413284,93345.0,93344.0,0.0017106]
[1732046916970,0.91952226,93345.0,93344.0,0.0017106]
[1732046917594,0.96285572,93345.0,93344.0,0.0017106]
[1732046917806,0.85572672,93345.0,93344.0,0.0874146]
[1732046918020,0.50387548,93345.0,93344.0,0.0874146]
[1732046918241,0.46054202,93345.0,93344.0,0.0874146]
[1732046918487,0.46054202,93345.0,93344.0,0.0900788]
[1732046919748,0.0008553,93349.0,93344.0,0.0900788]
[1732046919749,0.0008553,93349.0,93348.0,0.0857]
[1732046920222,0.0008553,93349.0,93348.0,0.08834927]
[1732046926991,0.1079793,93349.0,93348.0,0.00264927]
[1732046927226,0.13291785,93349.0,93344.0,0.0017106]
[1732046927468,0.23844199,93345.0,93344.0,0.0017106]
[1732046927680,0.23863032,93345.0,93344.0,0.0017106]
[1732046927889,0.59097298,93345.0,93344.0,0.0017106]
[1732046928121,0.35234266,93345.0,93344.0,0.0017106]
[1732046928538,0.45947166,93345.0,93344.0,0.0017106]
[1732046928960,0.69813886,93345.0,93344.0,0.0017106]
[1732046929164,0.45947166,93345.0,93344.0,0.0017106]
[1732046929599,0.49261478,93345.0,93344.0,0.0017106]
[1732046930224,0.38548578,93345.0,93344.0,0.0017106]
[1732046930442,0.49261478,93345.0,93344.0,0.0017106]
[1732046931075,1.13281935,93345.0,93344.0,0.0017106]
[1732046931285,1.14281935,93345.0,93344.0,0.0017106]
[1732046931504,1.21991935,93345.0,93344.0,0.0017106]
[1732046931944,1.23191935,93345.0,93344.0,0.0017106]
[1732046932150,1.24191935,93345.0,93344.0,0.0017106]
[1732046933216,1.52854356,93345.0,93344.0,0.0017106]
[1732046933420,1.24191935,93345.0,93344.0,0.0017106]
[1732046935879,1.24391935,93345.0,93344.0,0.0017106]
[1732046936080,1.24191935,93345.0,93344.0,0.0017106]
[1732046937784,1.253099,93345.0,93344.0,0.0017106]
[1732046938404,1.5394819,93345.0,93344.0,0.0017106]
[1732046938610,1.253099,93345.0,93344.0,0.0017106]
[1732046938812,1.53947038,93345.0,93344.0,0.0017106]
[1732046939038,1.253099,93345.0,93344.0,0.0017106]
[1732046939270,1.53946008,93345.0,93344.0,0.0017106]
[1732046939481,1.253099,93345.0,93344.0,0.0017106]
[1732046939931,1.257383,93345.0,93344.0,0.0017106]
[1732046940374,1.253099,93345.0,93344.0,0.0017106]
[1732046941084,0.98875634,93345.0,93344.0,0.0017106]
[1732046941970,0.107145,93331.0,93330.0,0.0017096]
[1732046942203,0.56768702,93331.0,93330.0,0.0017096]
[1732046942428,0.46054202,93331.0,93330.0,0.0017096]
[1732046943787,0.50329659,93331.0,93330.0,0.0017096]
[1732046944463,0.74250414,93331.0,93330.0,0.0017096]
[1732046945120,0.50329659,93331.0,93330.0,0.0017096]
[1732046945995,0.69401771,93331.0,93330.0,0.0017096]
[1732046946462,0.69401771,93331.0,93330.0,0.00425202]
[1732046946688,0.69401771,93331.0,93330.0,0.0017096]
[1732046946920,0.18577022,93331.0,93330.0,0.0017096]
[1732046947390,0.18577022,93331.0,93330.0,0.0874266]
[1732046947599,0.04275457,93331.0,93330.0,0.0874266]
[1732046947823,0.02,93331.0,93330.0,0.0874266]
[1732046948037,0.02,93331.0,93330.0,0.08996902]
[1732046948459,0.02,93331.0,93330.0,0.00425202]
[1732046948706,0.02,93331.0,93330.0,0.0017096]
[1732046948920,0.02,93331.0,93330.0,0.0874266]
[1732046949133,0.02,93331.0,93330.0,0.08997298]
[1732046953147,0.02,93331.0,93330.0,0.08968093]
[1732046954413,0.02,93331.0,93330.0,0.32574348]
[1732046956247,0.02,93331.0,93330.0,0.34574348]
[1732046956493,0.02,93331.0,93330.0,0.32574348]
[1732046956951,0.02,93331.0,93330.0,0.21668093]
[1732046957838,0.02,93331.0,93330.0,0.34574348]
[1732046958282,0.02,93331.0,93330.0,0.33574348]
[1732046958495,0.02,93331.0,93330.0,0.34574348]
[1732046958941,0.02,93331.0,93330.0,0.33574348]
[1732046959177,0.02,93331.0,93330.0,0.34574348]
[1732046961001,0.02,93331.0,93330.0,0.44574348]
[1732046961254,0.02,93331.0,93330.0,0.44774348]
[1732046961462,0.02,93331.0,93330.0,0.44574348]
[1732046962168,0.14303549,93368.0,93363.0,0.085687]
[1732046962377,0.29780999,93374.0,93363.0,0.085687]
[1732046962378,0.14303549,93371.0,93363.0,0.085687]
[1732046962591,0.14303549,93372.0,93363.0,0.08807975]
[1732046962800,0.25026347,93371.0,93363.0,0.08807975]
[1732046963001,0.14316447,93371.0,93363.0,0.08807975]
[1732046963221,0.1,93372.0,93363.0,0.08807975]
[1732046963637,0.04328862,93366.0,93363.0,0.08807975]
[1732046963869,0.1,93372.0,93363.0,0.08807975]
[1732046964728,0.04415335,93369.0,93363.0,0.08807975]
[1732046968879,0.107103,93368.0,93363.0,0.08807975]
[1732046969077,0.04415335,93369.0,93363.0,0.08807975]
[1732046970221,0.214207,93368.0,93363.0,0.00239275]
[1732046970474,0.1079619,93364.0,93363.0,0.00239275]
[1732046970680,0.1079619,93364.0,93352.0,0.085696]
[1732046970681,0.0758549,93364.0,93352.0,0.085696]
[1732046970915,0.0758549,93364.0,93355.0,0.085693]
[1732046970916,0.10711,93362.0,93355.0,0.085693]
[1732046971146,0.0758549,93364.0,93335.0,0.0902]
[1732046971413,0.0008549,93364.0,93359.0,0.085689]
[1732046971878,0.107109,93363.0,93358.0,0.085691]
[1732046972103,0.09547994,93362.0,93354.0,0.085695]
[1732046972322,0.20259294,93360.0,93350.0,0.085698]
[1732046972527,0.107113,93359.0,93354.0,0.085695]
[1732046972734,0.09547994,93360.0,93355.0,0.085693]
[1732046973202,0.09547994,93360.0,93354.0,0.085695]
[1732046973428,0.20259294,93360.0,93354.0,0.171389]
[1732046973919,0.09547994,93360.0,93359.0,0.08569]
[1732046974143,0.14314806,93363.0,93362.0,0.085687]
[1732046974144,0.09547994,93363.0,93362.0,0.085687]
[1732046974364,0.0008549,93364.0,93363.0,0.085687]
[1732046974365,0.14400296,93364.0,93363.0,0.085687]
[1732046974580,0.0008549,93364.0,93363.0,0.085687]
[1732046974795,0.0008549,93364.0,93362.0,0.085687]
[1732046975238,0.0008549,93364.0,93363.0,0.085687]
[1732046976967,0.29964302,93377.0,93354.0,0.085695]
[1732046977169,0.107094,93376.0,93370.0,0.08568]
[1732046977385,0.29964302,93377.0,93370.0,0.08568]
[1732046977600,0.29964302,93377.0,93371.0,0.085679]
[1732046978043,0.29964302,93377.0,93376.0,0.085675]
[1732046978269,0.29964302,93377.0,93373.0,0.085677]
[1732046978473,0.29964302,93377.0,93376.0,0.00236875]
[1732046978692,0.29964302,93377.0,93375.0,0.085675]
[1732046978904,0.29964302,93377.0,93376.0,0.00236875]
[1732046979174,0.0004,93379.0,93376.0,0.0783]
[1732046979397,0.0004,93379.0,93378.0,0.085673]
[1732046979845,0.0004,93379.0,93378.0,0.08801395]
[1732046981815,0.0004,93379.0,93376.0,0.163975]
[1732046982025,0.0004,93379.0,93378.0,0.00222414]
[1732046982245,0.0004,93379.0,93378.0,0.085673]
[1732046982467,0.0004,93379.0,93378.0,0.08789714]
[1732046984227,0.00044,93379.0,93378.0,0.08789714]
[1732046985145,0.00044,93379.0,93378.0,0.00222414]
[1732046985353,0.00044,93379.0,93367.0,0.0784]
[1732046985574,0.00044,93379.0,93378.0,0.00222414]
[1732046985838,0.00044,93379.0,93377.0,0.085673]
[1732046986062,0.00044,93379.0,93378.0,0.08789714]
[1732046991790,0.0012951,93379.0,93378.0,0.32835969]
[1732046992004,0.1,93408.0,93378.0,0.24268669]
[1732046992230,0.1,93408.0,93401.0,0.085651]
[1732046992863,0.1,93408.0,93402.0,0.08782761]
[1732046993075,0.1,93409.0,93402.0,0.00217661]
[1732046993567,0.1,93409.0,93398.0,0.085654]
[1732046993793,0.149,93411.0,93401.0,0.085651]
[1732046993998,0.25806255,93411.0,93401.0,0.085651]
[1732046994208,0.30246664,93411.0,93401.0,0.085651]
[1732046994418,0.1,93409.0,93379.0,0.10906255]
[1732046994628,0.207057,93409.0,93380.0,0.085671]
[1732046994840,0.1,93409.0,93398.0,0.085654]
[1732046995075,0.10906255,93408.0,93381.0,0.08567]
[1732046995292,0.107061,93405.0,93395.0,0.085657]
[1732046995507,0.10906255,93405.0,93399.0,0.00207538]
[1732046995721,0.214123,93404.0,93378.0,0.1314]
[1732046995930,0.214125,93403.0,93394.0,0.085658]
[1732046996143,0.107064,93402.0,93394.0,0.085658]
[1732046996364,0.10906255,93405.0,93395.0,0.00207367]
[1732046996573,0.107063,93403.0,93395.0,0.085657]